fUSD/lending_fUSD_20260314
["ID","MTS","AMOUNT","RATE_DAILY","PERIOD"]
[408367162,1773504632785,-1567.43,0.00016116,2]
[408367163,1773504632795,-150.99,0.00016116,2]
[408367164,1773504632805,-7093.69818445,0.00016116,2]
[408367165,1773504632816,-7587.59181555,0.00016116,2]
[408367166,1773504632825,-499.99,0.00016116,2]
[408367167,1773504632835,-1477.76,0.00016116,2]
[408367168,1773504632844,-3717.54,0.00016116,2]
[408367169,1773504632853,-7599.64030728,0.00016116,2]
[408367172,1773504637832,-151.0,0.00014634,2]
[408367173,1773504637842,-283.66364573,0.00016116,2]
[408367174,1773504637853,-2116.68604699,0.00016116,2]
[408367175,1773504637862,-9999.99,0.00016116,2]
[408367176,1773504637871,-8443.69,0.00016116,2]
[408367177,1773504637880,-3251.35,0.00016116,2]
[408367178,1773504637890,-350.64,0.00016116,2]
[408367179,1773504637899,-299.99,0.00016116,4]
[408367180,1773504637914,-7590.2,0.00016116,2]
[408367189,1773504638071,-2112.5,0.00016116,2]
[408367191,1773504638082,-640.28556256,0.00016121,2]
[408367193,1773504638092,-651.11556502,0.00016121,2]
[408367195,1773504638101,-500.0,0.00016121,2]
[408367197,1773504638111,-255.0,0.00016124,2]
[408367199,1773504638120,-347.07248994,0.00016172,2]
[408367201,1773504638129,-500.0,0.00016172,2]
[408367203,1773504638138,-500.0,0.00016172,2]
[408367205,1773504638148,-507.17926616,0.00016172,2]
[408367207,1773504638157,-500.0,0.00016172,2]
[408367209,1773504638166,-178.46475675,0.00016172,2]
[408367211,1773504638175,-500.0,0.00016172,2]
[408367213,1773504638184,-500.0,0.00016172,2]
[408367215,1773504638193,-500.0,0.00016172,2]
[408367217,1773504638202,-500.0,0.00016172,2]
[408367219,1773504638211,-500.0,0.00016172,2]
[408367221,1773504638220,-500.0,0.00016172,2]
[408367223,1773504638229,-308.17170675,0.00016172,2]
[408367225,1773504638239,-500.0,0.00016172,2]
[408367227,1773504638248,-500.0,0.00016172,2]
[408367229,1773504638257,-500.0,0.00016172,2]
[408367231,1773504638266,-500.0,0.00016172,2]
[408367233,1773504638276,-498.50568057,0.00016172,2]
[408367235,1773504638286,-522.85324617,0.00016172,2]
[408367237,1773504638295,-500.0,0.00016172,2]
[408367239,1773504638304,-500.0,0.00016172,2]
[408367241,1773504638313,-563.45102742,0.00016172,2]
[408367243,1773504638322,-500.0,0.00016172,2]
[408367245,1773504638332,-449.97035783,0.00016172,2]
[408367246,1773504638342,-500.0,0.00016172,2]
[408367248,1773504638351,-500.0,0.00016172,2]
[408367250,1773504638360,-500.0,0.00016172,2]
[408367252,1773504638370,-450.65027715,0.00016172,2]
[408367254,1773504638379,-500.0,0.00016172,2]
[408367256,1773504638389,-500.0,0.00016172,2]
[408367258,1773504638397,-500.0,0.00016172,2]
[408367260,1773504638406,-500.0,0.00016172,2]
[408367262,1773504638415,-500.66398075,0.00016173,2]
[408367264,1773504638424,-500.0,0.00016173,2]
[408367266,1773504638433,-160.048,0.00016173,2]
[408367268,1773504638442,-160.048,0.00016173,2]
[408367269,1773504638451,-160.0,0.00016173,2]
[408367270,1773504638461,-160.048,0.00016173,2]
[408367271,1773504638470,-160.048,0.00016173,2]
[408367272,1773504638480,-160.048,0.00016173,2]
[408367273,1773504638489,-500.0,0.00016173,2]
[408367274,1773504638499,-160.048,0.00016173,2]
[408367275,1773504638509,-160.048,0.00016173,2]
[408367276,1773504638518,-160.048,0.00016173,2]
[408367277,1773504638527,-160.048,0.00016173,2]
[408367278,1773504638537,-160.048,0.00016173,2]
[408367279,1773504638546,-160.048,0.00016173,2]
[408367280,1773504638557,-500.0,0.00016173,2]
[408367281,1773504638567,-500.39228547,0.00016173,2]
[408367282,1773504638576,-162.56777794,0.00016173,2]
[408367283,1773504638586,-166.33052816,0.00016173,2]
[408367284,1773504638595,-500.0,0.00016173,2]
[408367285,1773504638604,-500.0,0.00016173,2]
[408367286,1773504638613,-163.88125691,0.00016173,2]
[408367287,1773504638623,-500.0,0.00016173,2]
[408367288,1773504638632,-556.31365803,0.00016173,2]
[408367289,1773504638641,-500.42197752,0.00016173,2]
[408367290,1773504638651,-576.15366368,0.00016173,2]
[408367291,1773504638660,-500.0,0.00016173,2]
[408367292,1773504638670,-500.0,0.00016173,2]
[408367293,1773504638679,-500.0,0.00016173,2]
[408367294,1773504638688,-500.0,0.00016173,2]
[408367295,1773504638698,-517.23170255,0.00016173,2]
[408367296,1773504638707,-500.45461259,0.00016173,2]
[408367297,1773504638717,-500.0,0.00016173,2]
[408367298,1773504638726,-484.63820972,0.00016173,2]
[408367299,1773504638736,-500.0,0.00016173,2]
[408367300,1773504638745,-500.0,0.00016173,2]
[408367301,1773504638755,-500.0,0.00016173,2]
[408367302,1773504638764,-500.22378811,0.00016173,2]
[408367303,1773504638775,-500.0,0.00016173,2]
[408367304,1773504638784,-500.0,0.00016173,2]
[408367305,1773504638794,-565.36741899,0.00016173,2]
[408367306,1773504638803,-500.0,0.00016173,2]
[408367307,1773504638812,-1865.6,0.00016176,2]
[408367308,1773504638822,-14314.72708836,0.000162,5]
[408367309,1773504638835,-560.40857843,0.000162,5]
[408367513,1773504645502,-608.00046403,0.00016173,2]
[408367514,1773504645512,-11348.43067651,0.000162,5]
[408367638,1773505157809,10000.01,0.00013983,2]
[408367639,1773505157830,145.83683209,0.00013983,2]
[408367660,1773505831944,-272.0,0.00014775,2]
[408367661,1773505831953,-438.87669946,0.00014775,2]
[408367662,1773505831965,-57.66330054,0.00014775,2]
[408367663,1773505831975,-250.0,0.00014796,2]
[408367664,1773505831985,-615.27,0.00014818,2]
[408367665,1773505831994,-1200.0,0.00014822,2]
[408367666,1773505832003,-300.0,0.00014822,2]
[408367667,1773505832013,-150.0,0.00014822,2]
[408367670,1773505832023,-180.0,0.00014822,2]
[408367672,1773505832032,-2113.8651714,0.00014823,2]
[408367674,1773505832043,-515.94292169,0.00014823,2]
[408367675,1773505832053,-958.01119287,0.00014823,2]
[408367676,1773505832064,-3574.65524639,0.00014823,2]
[408367677,1773505832272,-17036.09667886,0.00014823,2]
[408367678,1773505832284,-4405.62893561,0.00014823,2]
[408367679,1773505832295,-10556.17413177,0.00014823,2]
[408367680,1773505832311,-569.13169042,0.00014823,2]
[408367691,1773505837813,-12671.88192344,0.00014823,2]
[408367692,1773505837997,-52100.38526314,0.00014823,2]
[408367694,1773505838762,1586.0,0.000107,5]
[408367698,1773505840452,-10477.46684441,0.00014823,2]
[408367699,1773505840462,-556.46,0.00014841,2]
[408367700,1773505840473,-1600.0,0.0001489,2]
[408367701,1773505840483,-150.0,0.000149,2]
[408367702,1773505840492,-180.70779916,0.000149,2]
[408367703,1773505840502,-250.0,0.00015,2]
[408367704,1773505840512,-3240.0,0.00015018,2]
[408367705,1773505840525,-200.0,0.00015122,2]
[408367706,1773505840534,-2000.0,0.00015172,2]
[408367707,1773505840545,-5035.56,0.00015256,2]
[408367708,1773505840554,-6090.8,0.00015333,2]
[408367710,1773505840563,-180.70779916,0.00015371,2]
[408367712,1773505840572,-8629.58,0.00015388,2]
[408367714,1773505840581,-2474.97,0.00015471,2]
[408367716,1773505840591,-351.69,0.00015471,2]
[408367718,1773505840600,-7590.2,0.00015471,2]
[408367719,1773505840609,-23251.34,0.00015471,2]
[408367721,1773505840618,-999.99,0.00015471,2]
[408367723,1773505840627,-8443.69,0.00015471,2]
[408367725,1773505840637,-9999.99,0.00015471,2]
[408367727,1773505840646,-150.99,0.00015471,2]
[408367729,1773505840655,-9999.99,0.00015471,2]
[408367731,1773505840665,-350.64,0.00015471,2]
[408367733,1773505840674,-150.99,0.00015471,2]
[408367735,1773505840684,-9999.99,0.00015471,2]
[408367737,1773505840693,-160.048,0.00015473,2]
[408367739,1773505840703,-160.048,0.00015473,2]
[408367741,1773505840712,-160.048,0.00015473,2]
[408367743,1773505840721,-500.0,0.00015473,2]
[408367745,1773505840730,-500.0,0.00015473,2]
[408367747,1773505840740,-167.31479234,0.00015473,2]
[408367749,1773505840749,-500.59506697,0.00015473,2]
[408367751,1773505840758,-500.0,0.00015473,2]
[408367752,1773505840768,-500.0,0.00015473,2]
[408367753,1773505840778,-500.0,0.00015473,2]
[408367754,1773505840788,-500.0,0.00015473,2]
[408367755,1773505840800,-160.048,0.00015473,2]
[408367756,1773505840809,-160.048,0.00015473,2]
[408367757,1773505840818,-160.048,0.00015473,2]
[408367758,1773505840828,-500.0,0.00015473,2]
[408367759,1773505840837,-160.0,0.00015473,2]
[408367760,1773505840846,-160.048,0.00015473,2]
[408367761,1773505840855,-160.048,0.00015473,2]
[408367762,1773505840863,-160.048,0.00015473,2]
[408367763,1773505840873,-160.048,0.00015473,2]
[408367764,1773505840882,-160.048,0.00015473,2]
[408367765,1773505840891,-500.0,0.00015473,2]
[408367766,1773505840901,-502.82313972,0.00015473,2]
[408367767,1773505840911,-500.0,0.00015473,2]
[408367768,1773505840921,-500.0,0.00015473,2]
[408367769,1773505840932,-2442.31,0.00015632,2]
[408367770,1773505840942,-556.46,0.00015665,2]
[408367771,1773505840951,-500.0,0.00015747,2]
[408367772,1773505840960,-164.54,0.00015808,2]
[408367773,1773505840969,-197.61,0.00015851,2]
[408367774,1773505840979,-2000.0,0.0001589,2]
[408367775,1773505840988,-255.0,0.00015948,2]
[408367776,1773505840998,-380.0,0.00015973,2]
[408367777,1773505841007,-608.00046403,0.00016021,2]
[408367778,1773505841016,-651.11556502,0.00016021,2]
[408367779,1773505841027,-640.28556256,0.00016021,2]
[408367780,1773505841036,-500.0,0.00016021,2]
[408367781,1773505841046,-675.0,0.00016024,2]
[408367782,1773505841055,-200.0,0.0001609,2]
[408367783,1773505841065,-7756.6070434,0.000161,2]
[408367784,1773505841074,-1461.48110588,0.00016116,2]
[408367785,1773505841083,-617.37656424,0.00016116,2]
[408367786,1773505841092,-9999.99,0.00016116,2]
[408367787,1773505841101,-316.0,0.00016123,2]
[408367788,1773505841111,-715.0,0.00016127,2]
[408367789,1773505841120,-500.0,0.00016173,2]
[408367790,1773505841129,-500.0,0.00016173,2]
[408367791,1773505841138,-500.57919258,0.00016173,2]
[408367792,1773505841148,-160.04800097,0.00016173,2]
[408367793,1773505841157,-500.45461259,0.00016173,2]
[408367794,1773505841166,-500.0,0.00016173,2]
[408367795,1773505841175,-500.0,0.00016173,2]
[408367796,1773505841183,-500.0,0.00016173,2]
[408367797,1773505841192,-484.63820972,0.00016173,2]
[408367798,1773505841201,-500.0,0.00016173,2]
[408367799,1773505841210,-500.0,0.00016173,2]
[408367800,1773505841219,-500.0,0.00016173,2]
[408367801,1773505841228,-500.0,0.00016173,2]
[408367802,1773505841237,-502.2044896,0.00016173,2]
[408367803,1773505841246,-166.33052816,0.00016173,2]
[408367804,1773505841255,-500.42197752,0.00016173,2]
[408367805,1773505841264,-517.23170255,0.00016173,2]
[408367806,1773505841273,-500.0,0.00016173,2]
[408367807,1773505841283,-500.0,0.00016173,2]
[408367808,1773505841292,-500.0,0.00016173,2]
[408367809,1773505841301,-163.88125691,0.00016173,2]
[408367810,1773505841311,-556.31365803,0.00016173,2]
[408367811,1773505841320,-500.0,0.00016173,2]
[408367812,1773505841329,-500.0,0.00016173,2]
[408367813,1773505841340,-576.15366368,0.00016173,2]
[408367814,1773505841349,-500.0,0.00016173,2]
[408367815,1773505841359,-500.0,0.00016173,2]
[408367816,1773505841368,-500.0,0.00016173,2]
[408367817,1773505841378,-500.0,0.00016173,2]
[408367818,1773505841387,-500.0,0.00016173,2]
[408367819,1773505841401,-500.0,0.00016173,2]
[408367820,1773505841410,-500.0,0.00016173,2]
[408367821,1773505841419,-500.0,0.00016173,2]
[408367822,1773505841431,-500.0,0.00016173,2]
[408367823,1773505841440,-210.33695633,0.00016173,2]
[408367824,1773505841449,-406.99120182,0.00016173,2]
[408367825,1773505841459,-596.86183762,0.00016173,2]
[408367826,1773505841468,-500.0,0.00016173,2]
[408367827,1773505841478,-500.0,0.00016173,2]
[408367828,1773505841487,-500.0,0.00016173,2]
[408367829,1773505841498,-500.0,0.00016173,2]
[408367830,1773505841507,-500.22378811,0.00016173,2]
[408367831,1773505841517,-565.36741899,0.00016173,2]
[408367832,1773505841526,-500.0,0.00016173,2]
[408367833,1773505841535,-700.18,0.00016173,2]
[408367834,1773505841544,-319.60913374,0.00016176,2]
[408367835,1773505841553,-500.0,0.00016176,2]
[408367836,1773505841563,-167.13,0.00016177,2]
[408367837,1773505841572,-167.13,0.00016178,2]
[408367838,1773505841581,-151.0,0.00016185,2]
[408367839,1773505841590,-507.17926616,0.00016186,2]
[408367840,1773505841600,-347.07248994,0.00016186,2]
[408367841,1773505841609,-500.0,0.00016186,2]
[408367842,1773505841618,-500.0,0.00016186,2]
[408367843,1773505841627,-500.0,0.00016186,2]
[408367844,1773505841636,-500.0,0.00016186,2]
[408367845,1773505841645,-500.0,0.00016186,2]
[408367846,1773505841654,-500.0,0.00016186,2]
[408367847,1773505841663,-500.0,0.00016186,2]
[408367848,1773505841672,-500.0,0.00016186,2]
[408367849,1773505841681,-500.0,0.00016186,2]
[408367850,1773505841690,-308.17170675,0.00016186,2]
[408367851,1773505841699,-500.0,0.00016186,2]
[408367852,1773505841708,-500.0,0.00016186,2]
[408367853,1773505841718,-500.0,0.00016186,2]
[408367854,1773505841727,-500.0,0.00016186,2]
[408367855,1773505841736,-500.0,0.00016186,2]
[408367856,1773505841746,-500.0,0.00016186,2]
[408367857,1773505841755,-498.50568057,0.00016186,2]
[408367858,1773505841764,-500.0,0.00016186,2]
[408367859,1773505841773,-500.0,0.00016186,2]
[408367860,1773505841782,-500.0,0.00016186,2]
[408367861,1773505841791,-178.46475675,0.00016186,2]
[408367862,1773505841800,-522.85324617,0.00016186,2]
[408367863,1773505841809,-500.0,0.00016186,2]
[408367864,1773505841818,-563.45102742,0.00016186,2]
[408367865,1773505841827,-500.0,0.00016186,2]
[408367866,1773505841836,-450.65027715,0.00016186,2]
[408367867,1773505841845,-500.0,0.00016186,2]
[408367868,1773505841855,-500.0,0.00016186,2]
[408367869,1773505841863,-500.0,0.00016186,2]
[408367870,1773505841872,-500.0,0.00016186,2]
[408367871,1773505841881,-500.0,0.00016186,2]
[408367872,1773505841890,-500.0,0.00016186,2]
[408367873,1773505841899,-500.0,0.00016186,2]
[408367874,1773505841909,-500.0,0.00016186,2]
[408367875,1773505841918,-500.0,0.00016186,2]
[408367876,1773505841927,-500.0,0.00016186,2]
[408367877,1773505841937,-500.0,0.00016186,2]
[408367878,1773505841946,-500.0,0.00016186,2]
[408367879,1773505841955,-500.0,0.00016186,2]
[408367880,1773505841964,-500.0,0.00016186,2]
[408367881,1773505841974,-500.0,0.00016186,2]
[408367882,1773505841984,-500.0,0.00016186,2]
[408367883,1773505841993,-500.0,0.00016186,2]
[408367884,1773505842002,-500.0,0.00016186,2]
[408367885,1773505842011,-500.0,0.00016186,2]
[408367886,1773505842020,-500.0,0.00016186,2]
[408367887,1773505842029,-500.0,0.00016186,2]
[408367888,1773505842039,-500.0,0.00016186,2]
[408367889,1773505842048,-500.0,0.00016186,2]
[408367890,1773505842057,-500.0,0.00016187,2]
[408367891,1773505842067,-500.0,0.00016187,2]
[408367892,1773505842076,-500.0,0.00016187,2]
[408367893,1773505842086,-500.0,0.00016187,2]
[408367894,1773505842095,-500.0,0.00016187,2]
[408367895,1773505842104,-500.0,0.00016187,2]
[408367896,1773505842113,-500.0,0.00016187,2]
[408367897,1773505842121,-151.0,0.00016187,2]
[408367898,1773505842130,-84572.48502608,0.00016188,2]
[408367899,1773505842250,-38424.17277297,0.00016188,2]
[408367906,1773505842994,-2109.33966195,0.00016188,2]
[408367907,1773505843004,-11555.4334601,0.00016188,2]
[408367908,1773505843013,-1425.9210014,0.00016188,2]
[408367909,1773505843022,-151.0,0.00016188,2]
[408367910,1773505843032,-151.0,0.00016188,2]
[408367911,1773505843041,-151.0,0.00016188,2]
[408367912,1773505843050,-151.0,0.00016197,2]
[408367913,1773505843060,-500.0,0.00016199,2]
[408367914,1773505843069,-500.0,0.00016199,2]
[408367915,1773505843078,-500.0,0.00016199,2]
[408367919,1773505843226,-500.0,0.00016199,2]
[408367921,1773505843236,-500.0,0.00016199,2]
[408367923,1773505843245,-500.0,0.00016199,2]
[408367925,1773505843254,-500.0,0.00016199,2]
[408367927,1773505843263,-500.0,0.00016199,2]
[408367929,1773505843272,-500.0,0.00016199,2]
[408367931,1773505843280,-500.0,0.00016199,2]
[408367933,1773505843290,-500.0,0.00016199,2]
[408367935,1773505843299,-500.0,0.00016199,2]
[408367937,1773505843308,-500.0,0.00016199,2]
[408367939,1773505843317,-500.0,0.00016199,2]
[408367941,1773505843326,-200.0,0.000162,2]
[408367943,1773505843335,-200.0,0.000162,2]
[408367945,1773505843344,-217.225635,0.000162,2]
[408367947,1773505843353,-151.0,0.000162,2]
[408367949,1773505843362,-151.0,0.000162,2]
[408367951,1773505843371,-151.0,0.000162,2]
[408367953,1773505843381,-1317.84763407,0.000162,2]
[408367955,1773505843390,-200.0,0.000162,2]
[408367957,1773505843402,-151.0,0.000162,2]
[408367960,1773505843411,-151.0,0.000162,2]
[408367962,1773505843420,-296.430358,0.000162,2]
[408367964,1773505843429,-296.430358,0.000162,2]
[408367965,1773505843438,-296.430358,0.000162,2]
[408367967,1773505843447,-296.430358,0.000162,2]
[408367969,1773505843456,-151.0,0.000162,2]
[408367971,1773505843467,-151.0,0.000162,2]
[408367973,1773505843476,-246.011068,0.000162,2]
[408367975,1773505843486,-200.0,0.000162,2]
[408367977,1773505843495,-900.59,0.00016224,2]
[408367979,1773505843504,-1872.34991709,0.00016253,2]
[408367981,1773505843514,-250.0,0.00016253,2]
[408367983,1773505843523,-316.0,0.00016259,2]
[408367985,1773505843532,-361.4268005,0.00016299,2]
[408367987,1773505843541,-250.0,0.00016299,2]
[408367989,1773505843550,-1680.0,0.00016304,2]
[408367992,1773505843560,-2685.59,0.00016311,2]
[408367994,1773505843569,-316.0,0.00016324,2]
[408367996,1773505843578,-287.42257649,0.00016336,2]
[408367998,1773505843587,-1906.05402337,0.0001634,2]
[408368000,1773505843596,-166.66,0.00016351,2]
[408368002,1773505843606,-316.0,0.00016354,2]
[408368004,1773505843615,-1501.16,0.00016357,2]
[408368006,1773505843624,-200.0,0.00016362,2]
[408368008,1773505843633,-200.0,0.00016362,2]
[408368010,1773505843643,-316.0,0.00016396,2]
[408368011,1773505843652,-2442.31,0.00016414,2]
[408368013,1773505843662,-500.0,0.00016438,2]
[408368016,1773505843671,-151.0,0.00016438,2]
[408368017,1773505843680,-151.0,0.00016438,2]
[408368019,1773505843690,-151.0,0.00016438,2]
[408368022,1773505843699,-151.0,0.00016438,2]
[408368024,1773505843712,-151.0,0.00016438,2]
[408368026,1773505843722,-151.0,0.00016438,2]
[408368028,1773505843731,-151.0,0.00016438,2]
[408368030,1773505843740,-151.0,0.00016438,2]
[408368032,1773505843750,-151.0,0.00016438,2]
[408368033,1773505843759,-151.0,0.00016438,2]
[408368035,1773505843770,-253.585392,0.00016438,2]
[408368037,1773505843779,-700.18,0.00016447,2]
[408368039,1773505843788,-500.0,0.00016466,2]
[408368041,1773505843798,-556.46,0.0001649,2]
[408368043,1773505843808,-316.0,0.00016505,2]
[408368045,1773505843817,-500.0,0.00016511,2]
[408368047,1773505843827,-500.0,0.00016511,2]
[408368049,1773505843836,-7756.6070434,0.00016522,2]
[408368052,1773505843845,-200.0,0.00016526,2]
[408368054,1773505843855,-200.0,0.00016526,2]
[408368055,1773505843864,-316.0,0.00016538,2]
[408368057,1773505843874,-316.0,0.00016553,2]
[408368060,1773505843883,-256.18724957,0.00016638,2]
[408368062,1773505843892,-316.0,0.00016656,2]
[408368064,1773505843901,-166.66,0.00016669,2]
[408368065,1773505843910,-200.0,0.00016691,2]
[408368067,1773505843919,-200.0,0.00016691,2]
[408368069,1773505843928,-500.0,0.00016694,2]
[408368071,1773505843937,-150.0,0.00016694,2]
[408368073,1773505843946,-150.0,0.00016694,2]
[408368076,1773505843956,-150.0,0.00016694,2]
[408368078,1773505843966,-150.0,0.00016694,2]
[408368080,1773505843975,-150.0,0.00016694,2]
[408368082,1773505843984,-153.98399154,0.00016694,2]
[408368084,1773505843993,-150.0,0.00016694,2]
[408368086,1773505844002,-150.1763193,0.00016694,2]
[408368087,1773505844010,-273.67521376,0.00016694,2]
[408368090,1773505844019,-170.76199485,0.00016694,2]
[408368091,1773505844028,-155.74326597,0.00016694,2]
[408368094,1773505844040,-150.0,0.00016694,2]
[408368096,1773505844049,-237.6962081,0.00016694,2]
[408368098,1773505844058,-150.0,0.00016694,2]
[408368100,1773505844067,-150.0,0.00016694,2]
[408368102,1773505844077,-150.0,0.00016694,2]
[408368104,1773505844086,-500.0,0.00016694,2]
[408368106,1773505844095,-150.0,0.00016694,2]
[408368108,1773505844104,-151.93684573,0.00016694,2]
[408368110,1773505844114,-500.0,0.00016694,2]
[408368112,1773505844123,-150.0,0.00016694,2]
[408368114,1773505844132,-564.0,0.00016694,2]
[408368116,1773505844142,-500.0,0.00016694,2]
[408368118,1773505844151,-500.0,0.00016694,2]
[408368120,1773505844161,-500.0,0.00016694,2]
[408368122,1773505844170,-150.74235965,0.00016694,2]
[408368124,1773505844179,-500.0,0.00016694,2]
[408368126,1773505844188,-150.0,0.00016694,2]
[408368128,1773505844197,-150.0,0.00016694,2]
[408368130,1773505844207,-500.0,0.00016694,2]
[408368132,1773505844216,-150.0,0.00016694,2]
[408368134,1773505844226,-150.0,0.00016694,2]
[408368136,1773505844235,-154.60523735,0.00016694,2]
[408368138,1773505844245,-150.0,0.00016694,2]
[408368140,1773505844254,-150.0,0.00016694,2]
[408368142,1773505844263,-150.0,0.00016694,2]
[408368144,1773505844272,-150.0,0.00016694,2]
[408368146,1773505844281,-658.0,0.00016694,2]
[408368148,1773505844291,-150.0,0.00016694,2]
[408368150,1773505844300,-500.0,0.00016694,2]
[408368152,1773505844309,-500.0,0.00016694,2]
[408368154,1773505844319,-581.99073604,0.00016721,2]
[408368156,1773505844330,-1000.0,0.00016721,2]
[408368158,1773505844339,-502.14581261,0.00016721,2]
[408368160,1773505844348,-1000.0,0.00016721,2]
[408368162,1773505844357,-500.23347102,0.00016721,2]
[408368164,1773505844366,-500.0,0.00016721,2]
[408368166,1773505844376,-500.0,0.00016721,2]
[408368168,1773505844386,-500.0,0.00016721,2]
[408368170,1773505844399,-291.7267322,0.00016721,2]
[408368172,1773505844408,-500.0,0.00016721,2]
[408368174,1773505844417,-169.90870624,0.00016721,2]
[408368176,1773505844426,-500.0,0.00016721,2]
[408368178,1773505844435,-1000.0,0.00016721,2]
[408368180,1773505844446,-700.18,0.00016721,2]
[408368182,1773505844454,-671.39,0.00016723,2]
[408368184,1773505844463,-151.0,0.00016746,2]
[408368186,1773505844475,-500.0,0.00016749,2]
[408368188,1773505844485,-150.0,0.00016749,2]
[408368190,1773505844494,-279.15899332,0.00016749,2]
[408368192,1773505844503,-187.38563793,0.00016749,2]
[408368194,1773505844512,-150.0,0.00016749,2]
[408368196,1773505844521,-150.0,0.00016749,2]
[408368198,1773505844530,-150.0,0.00016749,2]
[408368200,1773505844539,-152.16895314,0.00016749,2]
[408368202,1773505844549,-500.0,0.00016749,2]
[408368204,1773505844558,-150.0,0.00016749,2]
[408368206,1773505844567,-500.0,0.00016749,2]
[408368208,1773505844576,-150.0,0.00016749,2]
[408368210,1773505844586,-564.0,0.00016749,2]
[408368212,1773505844596,-500.0,0.00016749,2]
[408368214,1773505844605,-500.0,0.00016749,2]
[408368216,1773505844614,-500.0,0.00016749,2]
[408368218,1773505844624,-500.0,0.00016749,2]
[408368220,1773505844633,-150.0,0.00016749,2]
[408368222,1773505844642,-200.0,0.00016749,2]
[408368224,1773505844651,-500.0,0.00016749,2]
[408368226,1773505844661,-204.52479731,0.00016749,2]
[408368228,1773505844670,-150.0,0.00016749,2]
[408368230,1773505844679,-150.0,0.00016749,2]
[408368232,1773505844689,-200.0,0.00016749,2]
[408368234,1773505844698,-150.0,0.00016749,2]
[408368236,1773505844707,-658.0,0.00016749,2]
[408368238,1773505844718,-200.0,0.00016749,2]
[408368240,1773505844727,-500.0,0.00016749,2]
[408368242,1773505844737,-500.0,0.00016749,2]
[408368244,1773505844747,-151.0,0.00016749,2]
[408368246,1773505844756,-151.0,0.00016749,2]
[408368248,1773505844765,-151.0,0.00016749,2]
[408368250,1773505844775,-151.0,0.00016749,2]
[408368252,1773505844784,-1215.60322393,0.00016751,2]
[408368292,1773505845705,-384.39677607,0.00016751,2]
[408368293,1773505845715,-1501.16,0.00016756,2]
[408368294,1773505845724,-151.0,0.00016772,2]
[408368295,1773505845733,-151.0,0.00016772,2]
[408368296,1773505845742,-151.0,0.00016772,2]
[408368297,1773505845752,-151.0,0.00016772,2]
[408368298,1773505845761,-151.0,0.00016772,2]
[408368299,1773505845771,-151.0,0.00016772,2]
[408368300,1773505845780,-296.430358,0.00016772,2]
[408368301,1773505845789,-296.430358,0.00016772,2]
[408368302,1773505845799,-296.430358,0.00016772,2]
[408368303,1773505845809,-296.430358,0.00016772,2]
[408368304,1773505845818,-5019.12183063,0.00016772,2]
[408368305,1773505845830,-4980.87816937,0.00016772,2]
[408368306,1773505845840,-500.0,0.00016773,2]
[408368307,1773505845849,-167.13,0.00016794,2]
[408368308,1773505845859,-500.0,0.00016803,2]
[408368309,1773505845868,-500.0,0.00016803,2]
[408368310,1773505845877,-500.0,0.00016803,2]